[Event "Hungarian Youth-ch U14 2022"]
[Site "Eger"]
[Date "2022.07.29"]
[Round "7.6"]
[White "Horvath, Greta"]
[Black "Lazsadi, Kerka Lilla"]
[Result "0-1"]
[ECO "C18"]
[WhiteElo "1346"]
[BlackElo "1674"]
[Annotator "NA RC COMBH"]
[PlyCount "85"]
[EventDate "2022.07.21"]
[EventType "tourn"]
[EventCountry "HUN"]
[SourceTitle "playchess.com"]
[Source "ChessBase"]
[SourceQuality "1"]
[TimeControl "40/5400+30:1800+30"]

1. e4 {[%emt 0:00:34]} e6 {[%emt 0:00:35]} 2. d4 {[%emt 0:00:07]} d5 {[%emt 0:00:04]} 3. Nc3 {[%emt 0:00:09]} Bb4 {[%emt 0:00:08]} 4. e5 {[%emt 0:00:13]} Ne7 {[%emt 0:00:05]} 5. a3 {[%emt 0:00:32]} Bxc3+ {[%emt 0:00:08]} 6. bxc3 {[%emt 0:00:08]} c5 {[%emt 0:00:06]} 7. Qg4 {[%emt 0:04:07]} Qc7 {[%emt 0:00:35]} 8. dxc5 {[%emt 0:23:28]} Qxe5+ {[%emt 0:02:37]} 9. Ne2 {[%emt 0:01:03]} O-O {[%emt 0:04:22]} 10. Qd4 {[%emt 0:03:49]} Nbc6 {[%emt 0:01:52]} 11. Qxe5 {[%emt 0:01:44]} Nxe5 {[%emt 0:00:09]} 12. Nd4 {[%emt 0:04:08]} a6 {[%emt 0:03:42]} 13. Be2 {[%emt 0:05:10]} Bd7 {[%emt 0:06:43]} 14. O-O {[%emt 0:04:03]} Rfc8 {[%emt 0:02:39]} 15. Nb3 {[%emt 0:00:56]} Ba4 {[%emt 0:03:02]} 16. f4 {[%emt 0:04:26]} Nd7 {[%emt 0:00:42]} 17. Be3 {[%emt 0:03:59]} Bxb3 {[%emt 0:00:50]} 18. cxb3 {[%emt 0:00:16]} Nxc5 {[%emt 0:00:09]} 19. Bxc5 {[%emt 0:00:43]} Rxc5 {[%emt 0:00:07]} 20. Rac1 {[%emt 0:00:56]} Rac8 {[%emt 0:00:16]} 21. Rf3 {[%emt 0:01:00]} Nf5 {[%emt 0:00:52]} 22. Rd3 {[%emt 0:04:10]} Kf8 {[%emt 0:04:17]} 23. Bf3 {[%emt 0:05:11]} b5 {[%emt 0:02:08]} 24. Kf2 {[%emt 0:03:23]} d4 {[%emt 0:02:53]} 25. g4 {[%emt 0:02:41]} Rxc3 {[%emt 0:00:45]} 26. Rdxc3 {[%emt 0:01:15]} Rxc3 {[%emt 0:00:19]} 27. Rd1 {[%emt 0:00:54]} Nh4 {[%emt 0:02:40]} 28. Bb7 {[%emt 0:01:40]} Rxb3 {[%emt 0:01:13]} 29. Bxa6 {[%emt 0:01:39]} Rxa3 {[%emt 0:00:18]} 30. Bxb5 {[%emt 0:00:30]} Rf3+ {[%emt 0:00:12]} 31. Ke2 {[%emt 0:00:52]} Rxf4 {[%emt 0:00:11]} 32. h3 {[%emt 0:00:25]} f5 {[%emt 0:01:27]} 33. gxf5 {[%emt 0:00:46]} Nxf5 {[%emt 0:00:11]} 34. Bd3 {[%emt 0:00:37]} Ng3+ {[%emt 0:01:32]} 35. Kd2 {[%emt 0:00:44]} h6 {[%emt 0:01:02]} 36. Re1 {[%emt 0:00:28]} Kf7 {[%emt 0:02:29]} 37. Bc4 {[%emt 0:00:23]} Re4 {[%emt 0:00:30]} 38. Rxe4 {[%emt 0:00:28]} Nxe4+ {[%emt 0:00:06]} 39. Kd3 {[%emt 0:00:18]} Nf2+ {[%emt 0:00:48]} 40. Kxd4 {[%emt 0:00:00]} Nxh3 {[%emt 0:00:00]} 41. Ke5 {[%emt 0:00:37]} Ng5 {[%emt 0:00:23]} 42. Be2 {[%emt 0:00:17]} Ke7 {[%emt 0:00:42]} 43. Kd4 0-1

[Event "Hungarian Youth-ch U14 2022"]
[Site "Eger"]
[Date "2022.07.29"]
[Round "7.7"]
[White "Beznicza, Mira"]
[Black "Karacsonyi, Luca"]
[Result "1/2-1/2"]
[ECO "B20"]
[WhiteElo "1608"]
[BlackElo "1789"]
[Annotator "NA RC COMBH"]
[PlyCount "68"]
[EventDate "2022.07.21"]
[EventType "tourn"]
[EventCountry "HUN"]
[SourceTitle "playchess.com"]
[Source "ChessBase"]
[SourceQuality "1"]
[TimeControl "40/5400+30:1800+30"]

1. e4 {[%emt 0:00:34]} c5 {[%emt 0:00:36]} 2. b3 {[%emt 0:00:12]} Nc6 {[%emt 0:03:57]} 3. Bb2 {[%emt 0:01:35]} d6 {[%emt 0:06:39]} 4. Bb5 {[%emt 0:00:41]} Nf6 {[%emt 0:02:54]} 5. Nc3 {[%emt 0:02:58]} a6 {[%emt 0:02:09]} 6. Bxc6+ {[%emt 0:01:37]} bxc6 {[%emt 0:00:09]} 7. Qe2 {[%emt 0:03:55]} g6 {[%emt 0:05:33]} 8. h3 {[%emt 0:07:24]} Bg7 {[%emt 0:04:18]} 9. f4 {[%emt 0:01:50]} Qc7 {[%emt 0:10:41]} 10. g4 {[%emt 0:07:46]} e5 {[%emt 0:05:13]} 11. fxe5 {[%emt 0:03:37]} dxe5 {[%emt 0:01:17]} 12. Na4 {[%emt 0:03:44]} Nd7 {[%emt 0:05:30]} 13. O-O-O {[%emt 0:04:15]} a5 {[%emt 0:05:50]} 14. Qf2 {[%emt 0:03:55]} Qd6 {[%emt 0:02:31]} 15. Rf1 {[%emt 0:03:24]} f6 {[%emt 0:05:32]} 16. Nf3 {[%emt 0:06:24]} c4 {[%emt 0:05:12]} 17. h4 {[%emt 0:07:16]} cxb3 {[%emt 0:02:03]} 18. axb3 {[%emt 0:00:59]} Ba6 {[%emt 0:01:10]} 19. d3 {[%emt 0:11:30]} Bb5 {[%emt 0:02:56]} 20. Nc3 {[%emt 0:04:53]} Nc5 {[%emt 0:07:29]} 21. g5 {[%emt 0:11:41]} a4 {[%emt 0:03:14]} 22. gxf6 {[%emt 0:01:12]} Bxf6 {[%emt 0:05:15]} 23. Ng5 {[%emt 0:03:35]} Rf8 {[%emt 0:00:53]} 24. Qe3 {[%emt 0:01:36]} Bxg5 {[%emt 0:00:51]} 25. Rxf8+ {[%emt 0:00:34]} Qxf8 {[%emt 0:00:22]} 26. hxg5 {[%emt 0:00:21]} axb3 {[%emt 0:01:14]} 27. Nxb5 {[%emt 0:02:18]} cxb5 {[%emt 0:00:13]} 28. cxb3 {[%emt 0:00:22]} Nxb3+ {[%emt 0:01:19]} 29. Kc2 {[%emt 0:00:07]} Qb4 {[%emt 0:02:44]} 30. Kd1 {[%emt 0:02:18]} Nd4 {[%emt 0:01:32]} 31. Qc1 {[%emt 0:00:56]} Qb3+ {[%emt 0:01:51]} 32. Kd2 {[%emt 0:00:05]} Qb4+ {[%emt 0:01:34]} 33. Kd1 {[%emt 0:00:28]} Qb3+ {[%emt 0:00:24]} 34. Kd2 {[%emt 0:00:22]} Qb4+ {[%emt 0:00:06]} 1/2-1/2

[Event "Hungarian Youth-ch U14 2022"]
[Site "Eger"]
[Date "2022.07.29"]
[Round "7.8"]
[White "Eros, Vivien"]
[Black "Nandin-Erdene, Davaademberel"]
[Result "1-0"]
[ECO "B12"]
[WhiteElo "1599"]
[BlackElo "1789"]
[Annotator "NA RC COMBH"]
[PlyCount "73"]
[EventDate "2022.07.21"]
[EventType "tourn"]
[EventCountry "HUN"]
[SourceTitle "playchess.com"]
[Source "ChessBase"]
[SourceQuality "1"]
[TimeControl "40/5400+30:1800+30"]

1. e4 {[%emt 0:00:32]} c6 {[%emt 0:00:34]} 2. d4 {[%emt 0:00:04]} d5 {[%emt 0:00:04]} 3. e5 {[%emt 0:00:03]} Bf5 {[%emt 0:00:08]} 4. Nf3 {[%emt 0:00:06]} e6 {[%emt 0:00:09]} 5. Be2 {[%emt 0:00:05]} c5 {[%emt 0:00:15]} 6. c3 {[%emt 0:00:12]} Nc6 {[%emt 0:00:07]} 7. O-O {[%emt 0:03:04]} cxd4 {[%emt 0:00:14]} 8. cxd4 {[%emt 0:00:05]} Nge7 {[%emt 0:00:13]} 9. Nc3 {[%emt 0:00:54]} Nc8 {[%emt 0:00:47]} 10. Be3 {[%emt 0:06:40]} Be7 {[%emt 0:01:24]} 11. Qb3 {[%emt 0:06:08]} Nb6 {[%emt 0:01:26]} 12. a4 {[%emt 0:03:24]} O-O {[%emt 0:15:26]} 13. a5 {[%emt 0:05:16]} Nc4 {[%emt 0:01:46]} 14. Bxc4 dxc4 15. Qxb7 {[%emt 0:08:57]} Nb4 {[%emt 0:25:36]} 16. Bg5 {[%emt 0:09:43]} f6 {[%emt 0:15:19]} 17. exf6 {[%emt 0:00:19]} gxf6 {[%emt 0:00:20]} 18. Bh6 {[%emt 0:01:12]} Rf7 {[%emt 0:01:11]} 19. Qb5 {[%emt 0:08:28]} Qd6 {[%emt 0:09:11]} 20. Rfd1 {[%emt 0:09:57]} Qc7 {[%emt 0:03:13]} 21. Nd2 {[%emt 0:07:46]} Rc8 {[%emt 0:04:48]} 22. a6 {[%emt 0:03:11]} Nc2 {[%emt 0:02:40]} 23. Ra4 {[%emt 0:03:04]} Nxd4 {[%emt 0:10:52]} 24. Qxc4 {[%emt 0:01:12]} e5 {[%emt 0:03:40]} 25. Qd5 {[%emt 0:11:06]} Qb8 {[%emt 0:01:28]} 26. Nde4 {[%emt 0:07:12]} Rd8 {[%emt 0:01:01]} 27. Qb7 {[%emt 0:01:38]} Qxb7 {[%emt 0:00:30]} 28. axb7 {[%emt 0:00:04]} Bxe4 {[%emt 0:00:11]} 29. Nxe4 {[%emt 0:00:15]} Ne2+ {[%emt 0:00:48]} 30. Kf1 {[%emt 0:00:06]} Rxd1+ {[%emt 0:00:07]} 31. Kxe2 {[%emt 0:00:06]} Rd8 {[%emt 0:00:06]} 32. Rxa7 {[%emt 0:00:26]} Bb4 {[%emt 0:02:16]} 33. Ra8 {[%emt 0:00:53]} Rfd7 {[%emt 0:00:33]} 34. Nxf6+ {[%emt 0:00:38]} Kf7 {[%emt 0:00:23]} 35. Nxd7 {[%emt 0:00:08]} Bd6 {[%emt 0:00:31]} 36. Rxd8 {[%emt 0:00:18]} Ke7 {[%emt 0:00:07]} 37. Bg5+ {[%emt 0:00:10]} 1-0

[Event "Hungarian Youth-ch U14 2022"]
[Site "Eger"]
[Date "2022.07.29"]
[Round "7.9"]
[White "Szarvas, Nora Orsolya"]
[Black "Kovacs, Reka"]
[Result "1-0"]
[ECO "B33"]
[WhiteElo "1692"]
[BlackElo "1716"]
[Annotator "NA COMBH"]
[PlyCount "103"]
[EventDate "2022.07.21"]
[EventType "tourn"]
[EventCountry "HUN"]
[SourceTitle "playchess.com"]
[Source "ChessBase"]
[SourceQuality "1"]
[TimeControl "40/5400+30:1800+30"]

1. e4 {[%emt 0:00:33]} c5 {[%emt 0:00:34]} 2. Nf3 {[%emt 0:00:18]} Nc6 {[%emt 0:00:07]} 3. d4 {[%emt 0:00:05]} cxd4 {[%emt 0:00:06]} 4. Nxd4 {[%emt 0:00:03]} Nf6 {[%emt 0:00:11]} 5. Nc3 {[%emt 0:00:12]} e5 {[%emt 0:00:12]} 6. Ndb5 {[%emt 0:00:22]} d6 {[%emt 0:00:10]} 7. Bg5 {[%emt 0:00:13]} a6 {[%emt 0:00:24]} 8. Na3 {[%emt 0:00:07]} b5 {[%emt 0:00:23]} 9. Nd5 {[%emt 0:00:18]} Be7 {[%emt 0:00:25]} 10. Bxf6 {[%emt 0:00:10]} Bxf6 {[%emt 0:00:09]} 11. c4 {[%emt 0:00:20]} b4 {[%emt 0:00:09]} 12. Nc2 {[%emt 0:00:05]} a5 {[%emt 0:00:09]} 13. g3 {[%emt 0:01:10]} O-O {[%emt 0:00:19]} 14. Bg2 {[%emt 0:00:09]} Bg5 {[%emt 0:00:31]} 15. O-O {[%emt 0:01:15]} Be6 {[%emt 0:00:55]} 16. Qd3 {[%emt 0:04:41]} Qb8 {[%emt 0:00:43]} 17. b3 {[%emt 0:03:09]} Qa7 {[%emt 0:01:12]} 18. Rfd1 {[%emt 0:14:00]} Kh8 {[%emt 0:10:22]} 19. Qe2 {[%emt 0:08:31]} Rab8 {[%emt 0:08:57]} 20. Qh5 {[%emt 0:02:42]} f6 {[%emt 0:17:15]} 21. h4 {[%emt 0:08:04]} g6 {[%emt 0:04:31]} 22. Qe2 {[%emt 0:03:24]} Bh6 {[%emt 0:00:29]} 23. Nde3 {[%emt 0:21:27]} Qc5 {[%emt 0:05:44]} 24. h5 {[%emt 0:03:35]} f5 {[%emt 0:06:39]} 25. hxg6 {[%emt 0:06:54]} hxg6 {[%emt 0:00:47]} 26. exf5 {[%emt 0:01:29]} gxf5 {[%emt 0:09:25]} 27. Qh5 {[%emt 0:05:11]} Rf6 {[%emt 0:06:36]} 28. Nd5 {[%emt 0:02:32]} Bf7 {[%emt 0:07:36]} 29. Qh3 {[%emt 0:02:12]} Bxd5 {[%emt 0:00:57]} 30. Rxd5 {[%emt 0:00:15]} Qb6 {[%emt 0:01:12]} 31. Rb5 {[%emt 0:00:27]} Qc7 {[%emt 0:02:51]} 32. Bxc6 {[%emt 0:00:18]} Rg8 {[%emt 0:00:05]} 33. Bd5 {[%emt 0:01:21]} Rgg6 {[%emt 0:01:45]} 34. Ne3 {[%emt 0:01:05]} f4 {[%emt 0:01:47]} 35. Rb7 {[%emt 0:01:06]} Qd8 {[%emt 0:02:43]} 36. Ng4 {[%emt 0:01:55]} fxg3 {[%emt 0:01:52]} 37. Nxf6 {[%emt 0:02:38]} gxf2+ {[%emt 0:00:51]} 38. Kh1 {[%emt 0:04:41]} Qxf6 {[%emt 0:04:34]} 39. Rf1 {[%emt 0:01:29]} Rg1+ {[%emt 0:03:35]} 40. Rxg1 {[%emt 0:00:00]} fxg1=Q+ {[%emt 0:00:00]} 41. Kxg1 {[%emt 0:01:20]} Qg5+ {[%emt 0:00:46]} 42. Qg2 {[%emt 0:00:23]} Qe3+ {[%emt 0:20:50]} 43. Qf2 {[%emt 0:05:51]} Qg5+ {[%emt 0:01:37]} 44. Bg2 {[%emt 0:10:09]} Qc1+ {[%emt 0:00:19]} 45. Qf1 {[%emt 0:00:25]} Qe3+ {[%emt 0:01:14]} 46. Kh1 {[%emt 0:00:57]} Bf4 {[%emt 0:00:27]} 47. Bf3 {[%emt 0:02:41]} Bh6 {[%emt 0:02:24]} 48. Rb8+ {[%emt 0:00:30]} Bf8 {[%emt 0:04:51]} 49. Qh3+ {[%emt 0:04:24]} Kg7 {[%emt 0:00:15]} 50. Rb7+ {[%emt 0:00:14]} Kf6 {[%emt 0:00:26]} 51. Rf7+ {[%emt 0:00:35]} Kxf7 {[%emt 0:00:52]} 52. Bd5+ {[%emt 0:00:30]} 1-0

[Event "Hungarian Youth-ch U14 2022"]
[Site "Eger"]
[Date "2022.07.29"]
[Round "7.10"]
[White "Balazs, Sztella Anna"]
[Black "Toth, Timea"]
[Result "1-0"]
[ECO "B37"]
[WhiteElo "1663"]
[BlackElo "1964"]
[Annotator "TA"]
[PlyCount "71"]
[EventDate "2022.07.21"]
[EventType "tourn"]
[EventCountry "HUN"]
[SourceTitle "playchess.com"]
[Source "ChessBase"]
[SourceQuality "1"]
[TimeControl "40/5400+30:1800+30"]

{[%evp 10,71,41,0,0,0,7,0,0,0,52,0,83,64,81,63,96,89,105,56,55,0,98,77,100,56,52,45,251,254,355,337,356,356,350,300,360,339,452,452,750,585,897,272,281,234,309,248,260,196,191,176,2306,2098,2098,1859,2123,1987,2053,2113,2145,1244,1226,1129]} 1. e4 {[%emt 0:00:31]} c5 {[%emt 0:00:33]} 2. Nf3 {[%emt 0:00:04]} Nc6 {[%emt 0:00:03]} 3. d4 {[%emt 0:00:05]} cxd4 {[%emt 0:00:03]} 4. Nxd4 {[%emt 0:00:05]} g6 {[%emt 0:00:05]} 5. c4 {[%emt 0:00:05]} Bg7 {[%emt 0:00:04]} 6. Nc2 {[%emt 0:00:04]} e6 {[%emt 0:00:44] B37: Sicilian: Maroczy Bind with 5...Bg7, sidelines.} 7. Be2 {[%emt 0:01:28]} Nge7 {[%emt 0:00:35]} 8. O-O {[%emt 0:01:47]} O-O {[%emt 0:00:14] The position is equal.} 9. Nc3 {[%emt 0:01:21] Against d5} b6 {[%emt 0:04:52]} ({Better is} 9... f5 $11) 10. Be3 {[%emt 0:02:07] [#]} (10. Bg5 $14) 10... Rb8 $146 {[%emt 0:14:48]} (10... f5) (10... f5 $11 {keeps the balance.}) ({Predecessor:} 10... Bb7 11. Qd2 f5 12. f3 d5 13. exd5 exd5 14. cxd5 Nb4 15. Nxb4 {1-0 (15) Gatineau,Y (2423)-Kim,K (2019) Chess.com INT 2020}) 11. Qd2 {[%emt 0:03:37]} Bb7 {[%emt 0:02:04][%cal Od7d5]} 12. Rfd1 {[%emt 0:03:39] White is more active.} (12. Bg5 {looks sharper.} f5 13. exf5 Rxf5 14. Rad1) 12... Bc8 {[%emt 0:13:47]} 13. Rab1 {[%emt 0:03:48]} a6 {[%emt 0:01:34]} 14. Qd6 {[%emt 0:08:55]} ({White should try} 14. Bf4 $16) 14... Be5 $14 {[%emt 0:04:41]} 15. Qd2 {[%emt 0:00:11]} Bg7 $1 {[%emt 0:00:42]} 16. a4 {[%emt 0:10:16][%cal Ba2a4,Ba4b5][%mdl 32]} Qc7 {[%emt 0:11:22]} 17. c5 {[%emt 0:02:34]} (17. Nd5 exd5 18. cxd5) 17... bxc5 {[%emt 0:05:08]} 18. Bxc5 {[%emt 0:00:08] aiming for Bd6.} Qb7 $2 {[%emt 0:19:42] Black cannot hold the game after this.} (18... Be5) ({Black should play} 18... Be5 $1 $14) 19. b4 $18 {[%emt 0:04:53] [#] Black must now prevent b5.} Re8 {[%emt 0:12:07]} 20. b5 {[%emt 0:10:40]} axb5 {[%emt 0:01:59]} 21. axb5 {[%emt 0:00:49]} Nd8 {[%emt 0:01:17]} 22. Bf3 {[%emt 0:04:15][%cal Oe4e5] Threatens to win with e5!} d5 {[%emt 0:03:43]} 23. exd5 {[%emt 0:01:04]} Bxc3 {[%emt 0:00:32]} 24. Qxc3 {[%emt 0:00:21]} exd5 {[%emt 0:00:28]} (24... Nxd5 25. Bxd5 exd5) (24... Nxd5 $142 25. Bxd5 exd5) 25. Bd6 {[%emt 0:04:46] A strong pair of Bishops.} Ra8 {[%emt 0:00:41]} (25... Bf5 26. Bxb8 Qxb8) 26. Bxe7 $2 {[%emt 0:00:30]} (26. Ne3) (26. Ne3) 26... Qxe7 {[%emt 0:00:19]} 27. Bxd5 {[%emt 0:00:47]} Rb8 {[%emt 0:00:29]} 28. Re1 $40 {[%emt 0:02:19][%mdl 128] Black is in trouble.} Ne6 {[%emt 0:00:15]} 29. Nd4 {[%emt 0:02:00] [#] Strongly threatening Nc6.} Qf6 {[%emt 0:01:07]} 30. Qc4 {[%emt 0:02:16]} Nf4 $2 {[%emt 0:00:40]} (30... Bd7) 31. Rxe8+ {[%emt 0:00:25] White is clearly winning.} Kg7 {[%emt 0:00:06]} 32. Rxc8 {[%emt 0:01:59]} Rxc8 {[%emt 0:00:35]} 33. Qxc8 {[%emt 0:00:09]} Nxd5 {[%emt 0:00:14]} 34. Ne2 {[%emt 0:01:31]} Qe5 {[%emt 0:00:25]} 35. Qc4 {[%emt 0:00:22]} Nb6 {[%emt 0:00:27]} 36. Qd4 {[%emt 0:00:10] Weighted Error Value: White=0.50/Black=0.42} 1-0

[Event "Hungarian Youth-ch U14 2022"]
[Site "Eger"]
[Date "2022.07.30"]
[Round "8.1"]
[White "Szegedy, Matyas"]
[Black "Giang, Tran Nam"]
[Result "1/2-1/2"]
[ECO "C03"]
[WhiteElo "2152"]
[BlackElo "2144"]
[Annotator "TA"]
[PlyCount "163"]
[EventDate "2022.07.21"]
[EventType "tourn"]
[EventCountry "HUN"]
[SourceTitle "playchess.com"]
[Source "ChessBase"]
[SourceQuality "1"]
[TimeControl "40/5400+30:1800+30"]

{[%evp 16,163,25,22,22,0,-5,-21,2,-4,8,16,8,0,-2,17,70,81,70,10,20,23,20,0,34,3,13,4,10,0,0,0,0,-24,0,0,0,0,0,0,27,21,23,0,36,19,19,19,19,19,41,19,19,19,19,26,100,100,100,100,100,100,100,100,100,100,100,100,100,100,100,100,100,100,121,100,100,100,100,100,100,100,100,100,100,100,100,100,244,244,244,244,244,244,244,244,4634,244,244,83,244,244,244,244,244,8,22,0,244,41,244,244,244,129,129,129,129,129,129,0,52,52,52,52,52,0,52,0,52,52,52,52,52,52,53,53,53,53,53,0,0,0,0,0,0,0,0,0,0,0]} 1. e4 {[%emt 0:00:45][%cal Be2e4,Be4e5][%mdl 32]} e6 {[%emt 0:00:41]} 2. d4 {[%emt 0:00:25]} d5 {[%emt 0:00:20]} 3. Nd2 {[%emt 0:00:22]} Be7 {[%emt 0:00:12]} 4. Ngf3 {[%emt 0:00:53]} Nf6 {[%emt 0:00:15]} 5. e5 {[%emt 0:02:56]} Nfd7 {[%emt 0:00:18]} 6. Bd3 {[%emt 0:00:10]} c5 {[%emt 0:00:12]} 7. c3 {[%emt 0:00:05]} Nc6 {[%emt 0:00:13]} 8. O-O {[%emt 0:04:24]} g5 {[%emt 0:00:27]} 9. dxc5 {[%emt 0:00:35]} Ndxe5 {[%emt 0:00:51] C06: French Tarrasch: 3...Nf6 4 e5 Nfd7 5 Bd3 main lines.} 10. Bb5 {[%emt 0:01:37] Black must now prevent Nxe5.} (10. Bc2 {keeps more tension.} Bxc5 11. Nxg5 Qxg5 12. Ne4) 10... Ng6 {[%emt 0:00:26]} 11. Nb3 {[%emt 0:02:26]} O-O {[%emt 0:03:37]} 12. Re1 {[%emt 0:03:19]} Bd7 {[%emt 0:07:35] [#]} 13. Bd3 $146 {[%emt 0:06:38]} ({Predecessor:} 13. Be3 g4 14. Nfd2 e5 15. f3 h5 16. fxg4 hxg4 17. Nf1 Be6 18. Bh6 Re8 19. Ne3 {½-½ (57) Siva,M (2388)-Burcu,C (2193) Belgrade 2015}) 13... f5 {[%emt 0:17:11]} 14. c4 {[%emt 0:26:22]} g4 {[%emt 0:12:33]} 15. cxd5 $1 {[%emt 0:01:45]} gxf3 {[%emt 0:06:37]} (15... exd5 $11 16. Nfd4 Rf7) 16. dxc6 $14 {[%emt 0:00:07]} Bxc6 {[%emt 0:00:39]} 17. g3 {[%emt 0:00:24]} (17. Bh6 $1 $14) 17... Bd5 $11 {[%emt 0:07:13]} 18. Bh6 {[%emt 0:07:46]} Rf7 {[%emt 0:05:17]} 19. Qd2 {[%emt 0:07:37]} Bf8 {[%emt 0:08:10]} 20. Rad1 {[%emt 0:09:00][%cal Od3c4]} Bxh6 {[%emt 0:02:02]} 21. Qxh6 {[%emt 0:00:18][%cal Od3c4] With the idea Bc4!} Qf6 {[%emt 0:00:33]} 22. Na5 {[%emt 0:09:09][%cal Bb3a5,Ba5c4,Bc4e3][%mdl 32]} b6 {[%emt 0:05:45]} (22... Bxa2 23. b3 $16) 23. Nc4 {[%emt 0:04:18]} bxc5 {[%emt 0:02:19]} 24. Rd2 {[%emt 0:03:01]} Rb8 {[%emt 0:03:34]} 25. b3 {[%emt 0:00:34]} Qg7 {[%emt 0:01:18]} 26. Qxg7+ {[%emt 0:00:34]} Kxg7 {[%emt 0:00:30]} 27. Ne3 {[%emt 0:00:05][%cal Od3f5]} Ne7 {[%emt 0:04:31]} 28. Bc4 {[%emt 0:00:45]} Rd8 {[%emt 0:02:17]} 29. Red1 {[%emt 0:00:31][%cal Re3d5]} Rf6 {[%emt 0:00:19]} 30. Rd3 {[%emt 0:00:45][%cal Rc4d5]} ({Of course not} 30. Bxd5 exd5 31. Nc2 (31. Nxd5 $2 Rfd6 $19) 31... f4 $11) 30... f4 {[%emt 0:02:14]} 31. Nxd5 {[%emt 0:03:57]} exd5 {[%emt 0:00:18]} 32. Bxd5 {[%emt 0:00:05]} fxg3 {[%emt 0:00:35]} 33. hxg3 {[%emt 0:01:20]} (33. fxg3 {with more complications.} Ra6 34. Bxf3 Rxd3 35. Rxd3 Rxa2 36. Rd7) 33... Nxd5 {[%emt 0:03:34]} 34. Rxd5 {[%emt 0:00:02]} Rxd5 {[%emt 0:00:12]} 35. Rxd5 {[%emt 0:00:01][%mdl 4096] Endgame KR-KR} Ra6 {[%emt 0:00:20]} (35... Re6 $1 $11 {remains equal.}) 36. Rxc5 $16 {[%emt 0:01:54]} Rxa2 {[%emt 0:00:05]} 37. Rf5 {[%emt 0:00:34]} Rb2 {[%emt 0:01:36]} 38. Rxf3 {[%emt 0:00:05]} a5 {[%emt 0:00:51]} 39. Kg2 {[%emt 0:00:25]} Kg6 {[%emt 0:00:28]} 40. Rc3 {[%emt 0:00:00]} Rd2 {[%emt 0:00:00]} 41. Kf3 {[%emt 0:01:50]} Rd4 {[%emt 0:03:02]} 42. Rc6+ {[%emt 0:01:49]} Kg7 {[%emt 0:00:56]} 43. Rb6 {[%emt 0:00:45]} Rd2 {[%emt 0:03:49]} 44. Rb5 {[%emt 0:04:47]} Rb2 {[%emt 0:00:33]} 45. Rxa5 {[%emt 0:00:18]} Rxb3+ {[%emt 0:00:05] [#]} 46. Kg4 $1 {[%emt 0:00:06]} Rb6 {[%emt 0:01:23]} 47. f4 {[%emt 0:02:36]} Kg6 {[%emt 0:03:37]} 48. Rg5+ {[%emt 0:04:13]} Kf6 {[%emt 0:01:30]} 49. Kh5 {[%emt 0:01:12]} Rb2 {[%emt 0:08:57]} 50. Ra5 {[%emt 0:02:47]} Rh2+ {[%emt 0:01:28]} 51. Kg4 {[%emt 0:00:10] aiming for Rh5.} Rb2 {[%emt 0:00:20]} (51... Kg7 $16 52. Rg5+ Kh8) 52. Ra6+ $18 {[%emt 0:00:44]} Kg7 {[%emt 0:00:37]} 53. Kg5 {[%emt 0:01:01] Against h6+} Rb7 {[%emt 0:01:17]} 54. f5 {[%emt 0:01:34]} Rc7 {[%emt 0:00:27]} 55. g4 {[%emt 0:00:31]} Rb7 $2 {[%emt 0:00:45]} (55... Rc1 56. f6+ Kg8 57. Ra8+ Kf7 58. Ra7+ Kg8 59. Rg7+ Kh8) 56. Ra1 $2 {[%emt 0:06:49]} (56. f6+ Kf7 57. Kh6) 56... Rc7 {[%emt 0:00:56]} 57. Rh1 $2 {[%emt 0:00:46]} (57. Kh5 $18) 57... Rc5 $2 {[%emt 0:00:26]} (57... Rc3 $16 {keeps fighting.} 58. f6+ Kg8) 58. Rh6 {[%emt 0:01:46]} Rb5 {[%emt 0:00:19]} 59. Re6 {[%emt 0:00:07]} Rb7 {[%emt 0:00:41]} 60. Kh5 $2 {[%emt 0:00:26]} (60. Rd6 $18) 60... Rb1 $1 $11 {[%emt 0:01:56]} 61. Kg5 $2 {[%emt 0:03:51]} (61. g5 $11) 61... Rb7 $1 $18 {[%emt 0:00:05]} 62. Kf4 $2 {[%emt 0:01:05]} (62. Ra6 $18) 62... Rb4+ $2 {[%emt 0:00:41]} (62... h6 $1 $14 63. Rg6+ Kh7) 63. Re4 {[%emt 0:00:09]} Rb7 {[%emt 0:02:03] [#]} 64. g5 {[%emt 0:00:27]} (64. Kg5 $1 $18) 64... Kf7 {[%emt 0:01:08]} 65. Ra4 {[%emt 0:00:40]} Rc7 {[%emt 0:01:01]} 66. Kg4 {[%emt 0:00:18]} Rc1 {[%emt 0:03:19]} 67. Kf4 {[%emt 0:02:28]} ({White should play} 67. Ra7+ $16 Kg8 68. Kf3) 67... Rf1+ {[%emt 0:00:48]} ({Better is} 67... Rc7 $1 $11 68. Kg4 Kg7) 68. Ke5 $14 {[%emt 0:00:10]} Re1+ {[%emt 0:00:10]} 69. Re4 {[%emt 0:00:05]} Rg1 {[%emt 0:00:49]} 70. Ra4 {[%emt 0:02:21] Threatening mate with Ra7+.} Re1+ $1 {[%emt 0:00:48]} 71. Re4 {[%emt 0:00:01]} Rg1 $1 {[%emt 0:00:13]} 72. Kf4 {[%emt 0:00:01]} Rf1+ {[%emt 0:00:15]} 73. Kg4 $1 {[%emt 0:00:10]} Rg1+ {[%emt 0:00:33]} 74. Kh5 $1 {[%emt 0:00:19]} Rh1+ {[%emt 0:01:07]} 75. Rh4 $1 {[%emt 0:00:06]} Rf1 {[%emt 0:00:20]} 76. f6 {[%emt 0:01:00]} ({Resist} 76. Kg4 Rg1+ 77. Kf4 Rf1+ 78. Ke4 Re1+ 79. Kf4 Rf1+ 80. Ke5 Re1+ 81. Kf4 Rf1+ $16) 76... Rg1 {[%emt 0:00:20]} 77. Ra4 {[%emt 0:04:09]} (77. Rh2 $14) 77... Rh1+ $11 {[%emt 0:00:05] The position is equal.} 78. Kg4 {[%emt 0:00:05]} Rg1+ {[%emt 0:00:10]} 79. Kf4 {[%emt 0:00:05] Ra7+ is the strong threat.} Rf1+ {[%emt 0:00:22]} 80. Ke4 {[%emt 0:01:31] Threatens to win with Ra7+.} Kg6 {[%emt 0:02:03]} 81. Ra5 {[%emt 0:00:09]} h6 {[%emt 0:01:24]} 82. gxh6 {[%emt 0:00:21] Black escapes into a draw.  Weighted Error Value: White=0.28 (precise) /Black=0.15 (very precise)} 1/2-1/2